Cogmind - Beta 11.1 @@@ ROGUE MODE // 2022.06.25 @ 21:29:04 Player: milesaru Result: Destroyed by as-51962 with Assembled Heavy Rifle Performance ------------- Evolutions (0) 0 Regions Visited (4) 800 Robots Destroyed (9) 45 Value Destroyed (133) 133 Prototype IDs (0) 0 Alien Tech Used (0) 0 Bonus (0) 0 TOTAL SCORE: 978 Bonus ------- None Cogmind --------- Core Integrity 0/250 Matter 300/300 Energy 64/100 System Corruption 1% Temperature Cool (4) Movement Flying (37) Location -9/Mines Parts ------- > --- POWER (1) -------- (None) > --- PROPULSION (2) --- Flight Unit Flight Unit > --- UTILITY (2) ------ Heat Sink > --- WEAPON (2) ------- EM Pulse Gun > --- INVENTORY (5) ---- Aluminum Leg Aluminum Leg Small Laser Assault Rifle Mining Laser Peak State ------------ > --- POWER ------------ Light Ion Engine > --- PROPULSION ------- Aluminum Leg Aluminum Leg > --- UTILITY ---------- Small Storage Unit Light Armor Plating > --- WEAPON ----------- Shotgun Shotgun > --- INVENTORY -------- Aluminum Leg Aluminum Leg Wheel Assault Rifle Light Assault Rifle Light Assault Rifle [Rating: 9] Favorites ----------- Power Light Ion Engine Engine Light Ion Engine Propulsion Flight Unit Leg Aluminum Leg Wheel Compact Wheel Flight Unit Flight Unit Utility Heat Sink Device Heat Sink Storage Small Storage Unit Protection Light Armor Plating Weapon EM Pulse Gun Energy Gun EM Pulse Gun Ballistic Gun Assault Rifle Special Weapon Mining Laser Special Melee Weapon Datajack Build | -11 -10 -10 -10 -9 ------- Run | Scr Mat Min Exi Min Slots Evolved . | . . . . . Power . | . . . . . Propulsion . | . . . . . Utility . | . . . . . Weapon . | . . . . . Parts Attached 35 | 10 12 10 . 3 Power 2 | 1 . . . 1 Engine 2 | 1 . . . 1 Core . | . . . . . Reactor . | . . . . . Propulsion 12 | 6 4 . . 2 Treads . | . . . . . Leg 7 | 5 2 . . . Wheel 1 | 1 . . . . Hover . | . . . . . Flight 4 | . 2 . . 2 Utility 4 | 1 1 2 . . Device 2 | . . 2 . . Storage 1 | 1 . . . . Processor . | . . . . . Hackware . | . . . . . Protection 1 | . 1 . . . Artifact . | . . . . . Weapon 17 | 2 7 8 . . Energy Gun 3 | . . 3 . . Energy Cannon . | . . . . . Ballistic Gun 10 | 2 5 3 . . Ballistic Cannon . | . . . . . Launcher . | . . . . . Special Weapon 3 | . 2 1 . . Impact Weapon . | . . . . . Slashing Weapon . | . . . . . Piercing Weapon . | . . . . . Special Melee Weapon 1 | . . 1 . . Unidentified Prototypes . | . . . . . Parts Lost 4 | . . 2 . 2 Power 2 | . . 1 . 1 Propulsion . | . . . . . Utility . | . . . . . Weapon 2 | . . 1 . 1 Highest Loss Streak 2 | . . 1 . 2 To Critical Strikes . | . . . . . Average Slot Usage (%) 79 | . 83 79 71 72 Engine 10 | . 14 11 . 4 Leg 6 | . 19 . . . Flight 20 | . 6 28 28 28 Device 7 | . . 10 14 14 Storage 3 | . 11 . . . Protection 1 | . 4 . . . Energy Gun 10 | . . 8 28 25 Ballistic Gun 9 | . 22 5 . . Special Weapon 6 | . 4 12 . . Naked Turns . | . . . . . Heaviest Build 17 | 11 17 8 5 8 Greatest Support 20 | 20 20 8 8 8 Greatest Overweight (x) 4 | 2 4 . . . Average Overweight (x) . | . . . . . Largest Inventory Capacity 8 | 8 8 5 5 5 Average Capacity 6 | 7 7 5 5 5 Most Carried 8 | 4 8 5 5 5 Average Carried 4 | 2 3 4 5 5 Final Capacity 8 | 8 5 5 5 5 Final Carried 5 | 2 5 5 5 5 Class Distribution -------------------- 85% | Mutant 14% | Scavenger-Mutant Dominant Class ---------------- Mutant | -10/Materials Mutant | -10/Mines Mutant | -10/Exiles Mutant | -9/Mines Resources | -11 -10 -10 -10 -9 ----------- Run | Scr Mat Min Exi Min Matter Collected 619 | 263 141 158 . 57 Remotely . | . . . . . Salvage Created 215 | . 141 . . 74 Parts 19 | . 13 . . 6 Haulers Intercepted . | . . . . . Recyclers Shooed . | . . . . . Parts Field Recycled . | . . . . . Retrieved Matter . | . . . . . Parts Self-Destructed . | . . . . . Prevented . | . . . . . Kills | -11 -10 -10 -10 -9 ------- Run | Scr Mat Min Exi Min Combat Hostiles Destroyed 10 | . 5 . . 5 Guns 8 | . 5 . . 3 AOE 2 | . . . . 2 Classes Destroyed 4 | . 3 . . 1 Builder 1 | . 1 . . . Swarmer 6 | . 3 . . 3 Grunt 2 | . 2 . . . Assembled 2 | . . . . 2 Best Kill Streak 4 | . 4 . . 3 Combat Bots Only 3 | . 3 . . 3 Max Kills in Single Turn 2 | . 1 . . 2 Gunslinging . | . . . . . Exploded 2 | . . . . 2 Melee . | . . . . . Uniques/NPCs Destroyed . | . . . . . Combat | -11 -10 -10 -10 -9 -------- Run | Scr Mat Min Exi Min Damage Taken 681 | . 218 303 . 160 Core 250 | . 86 62 . 102 Absorbed by Shields . | . . . . . Core Remaining (%) 100 | 100 . . . . Volleys Fired 37 | . 14 15 . 8 Largest 2 | . 2 2 . 2 Hottest 200 | . 200 200 . 80 Shots Fired 72 | . 28 29 . 15 Gun 54 | . 24 15 . 15 Cannon . | . . . . . Launcher . | . . . . . Special 18 | . 4 14 . . Kinetic 28 | . 24 4 . . Thermal 23 | . 4 19 . . Explosive . | . . . . . Electromagnetic 21 | . . 6 . 15 Robot Hit Streak 5 | . 3 5 . 3 Robot Miss Streak 5 | . 5 2 . 4 Penetration Max . | . . . . . Secondary Targets . | . . . . . Shots Hit Robots 33 | . 16 10 . 7 Core Hits 16 | . 8 2 . 6 Critical Kills . | . . . . . Critical Parts Destroyed . | . . . . . Critical Strikes . | . . . . . Melee Attacks 2 | . . 2 . . Impact . | . . . . . Slashing . | . . . . . Piercing . | . . . . . Sneak Attacks . | . . . . . Combat Hostiles . | . . . . . Follow-up Attacks . | . . . . . Damage Inflicted 394 | . 163 98 . 133 Guns 327 | . 163 98 . 66 Cannons . | . . . . . Explosions 67 | . . . . 67 Melee . | . . . . . Ramming . | . . . . . Kinetic 214 | . 163 51 . . Thermal 102 | . . 35 . 67 Explosive . | . . . . . Electromagnetic 78 | . . 12 . 66 Impact . | . . . . . Slashing . | . . . . . Piercing . | . . . . . Highest Corruption 1 | . 1 1 1 1 Average Corruption 1 | . 1 1 1 1 Corruption Purged . | . . . . . Corruption Blocked . | . . . . . Effects 6 | . 1 3 1 1 Message Errors 3 | . . 2 1 . Heat Flow Errors 1 | . 1 . . . Energy Discharges 1 | . . 1 . . Data Loss (major) 1 | . . . . 1 Overload Shots . | . . . . . Overflow Damage . | . . . . . Projectiles . | . . . . . Explosions . | . . . . . Melee . | . . . . . Knockbacks . | . . . . . Impact . | . . . . . Kinetic . | . . . . . Secondary . | . . . . . Self-Inflicted Damage 38 | . . . . 38 Shots 1 | . . . . 1 Rammed . | . . . . . Targets Rammed . | . . . . . Kicked . | . . . . . Crushed . | . . . . . Highest Temperature 262 | . 137 262 . 5 Average Temperature 82 | . 41 102 . 5 Received Heat Transfer 195 | . 42 153 . . Effects 1 | . . 1 . . Energy Bleed 1 | . . 1 . . Siege Activations . | . . . . . Robots Corrupted . | . . . . . Combat Hostiles . | . . . . . Parts Fried . | . . . . . Impact Corruptions . | . . . . . Robots Melted . | . . . . . Combat Hostiles . | . . . . . Parts Melted . | . . . . . Heat Transferred 125 | . . 75 . 50 Parts Sabotaged . | . . . . . Parts Stolen . | . . . . . Parts Stripped . | . . . . . Power Chain Reactions 1 | . . . . 1 Missiles Intercepted . | . . . . . Alert | -11 -10 -10 -10 -9 ------- Run | Scr Mat Min Exi Min Peak Influence 267 | . 168 267 . 154 Initial 65 | . . 65 . . Average 110 | . 71 180 . 100 Maximum Alert Level 1 | . . 1 . . Low Security (%) 83 | 100 100 59 . 100 Level 1 16 | . . 40 . . Level 2 . | . . . . . Level 3 . | . . . . . Level 4 . | . . . . . Level 5 . | . . . . . High Security . | . . . . . Max Security . | . . . . . Squads Dispatched 1 | . 1 . . . Investigation 1 | . 1 . . . Extermination . | . . . . . Reinforcement . | . . . . . Assault . | . . . . . Garrison . | . . . . . Intercept . | . . . . . Searches Triggered . | . . . . . Construction Impeded . | . . . . . Haulers Reinforced . | . . . . . Active Scanning Responses . | . . . . . Cargo Convoy Interrupts . | . . . . . Stealth | -11 -10 -10 -10 -9 --------- Run | Scr Mat Min Exi Min Distress Signals 1 | . . . . 1 Communications Jammed . | . . . . . Distress Signals . | . . . . . Times Spotted 32 | . 7 16 . 9 Peak Tracking Total 5 | . 3 5 . 3 Tactical Retreats 6 | . . 5 . 1 Traps | -11 -10 -10 -10 -9 ------- Run | Scr Mat Min Exi Min Traps Triggered 4 | . 4 . . . Indirectly . | . . . . . Trap Hack Attempts . | . . . . . Triggered . | . . . . . Disarmed . | . . . . . Reprogrammed . | . . . . . Reused . | . . . . . Traps Extracted . | . . . . . Installed . | . . . . . Triggered . | . . . . . Machines | -11 -10 -10 -10 -9 ---------- Run | Scr Mat Min Exi Min Machines Disabled . | . . . . . Max in Single Turn . | . . . . . Machines Sabotaged . | . . . . . Garrisons Compromised . | . . . . . Overloaded Fab Kills . | . . . . . Hacking | -11 -10 -10 -10 -9 --------- Run | Scr Mat Min Exi Min Machines Accessed 7 | . 3 . 4 . Terminals 2 | . 2 . . . Fabricators . | . . . . . Repair Stations . | . . . . . Recycling Units 1 | . 1 . . . Scanalyzers . | . . . . . Garrison Access . | . . . . . Total Hacks 56 | . 7 . 49 . Successful 55 | . 6 . 49 . Failed 1 | . 1 . . . Catastrophic . | . . . . . Database Lockouts . | . . . . . Manual . | . . . . . Terminals 6 | . 6 . . . Fabricators . | . . . . . Repair Stations . | . . . . . Recycling Units 1 | . 1 . . . Scanalyzers . | . . . . . Garrison Access . | . . . . . Terminal Hacks 55 | . 6 . 49 . Record 53 | . 4 . 49 . Branch Access Points 1 | . 1 . . . Hauler Manifests 1 | . 1 . . . Fabricator Hacks . | . . . . . Repair Station Hacks . | . . . . . Recycling Unit Hacks . | . . . . . Scanalyzer . | . . . . . Garrison Access Hacks . | . . . . . Unauthorized Hacks . | . . . . . Terminals . | . . . . . Fabricators . | . . . . . Repair Stations . | . . . . . Recycling Units . | . . . . . Scanalyzers . | . . . . . Garrison Access . | . . . . . Data Cores Recovered . | . . . . . Used . | . . . . . Hacking Detections 1 | . 1 . . . Full Trace Events 1 | . 1 . . . Feedback Events . | . . . . . Feedback Blocked . | . . . . . Robot Schematics Acquired . | . . . . . Robots Built . | . . . . . Authchips . | . . . . . Time . | . . . . . Total Robot Build Rating . | . . . . . Part Schematics Acquired . | . . . . . Parts Built . | . . . . . Authchips . | . . . . . Time . | . . . . . Total Part Build Rating . | . . . . . Parts Repaired . | . . . . . Time . | . . . . . Parts Recycled . | . . . . . Recycled Matter . | . . . . . Retrieved Matter . | . . . . . Retrieved Components . | . . . . . Parts Scanalyzed . | . . . . . Part Schematics Acquired . | . . . . . Parts Damaged . | . . . . . Bothacking | -11 -10 -10 -10 -9 ------------ Run | Scr Mat Min Exi Min Used RIF Installer . | . . . . . Robots Hacked 1 | . . 1 . . Non-combat . | . . . . . Combat 1 | . . 1 . . Robot Hacks Applied 2 | . . 2 . . parse_system 2 | . . 2 . . Relay Couplers Released . | . . . . . Fabnet Peak Effective % . | . . . . . Robots Rewired . | . . . . . Allies Hacked . | . . . . . Hacks Repelled . | . . . . . Allies | -11 -10 -10 -10 -9 -------- Run | Scr Mat Min Exi Min Total Allies . | . . . . . Largest Group . | . . . . . Highest-Rated Group . | . . . . . Highest-Rated Ally . | . . . . . Total Orders . | . . . . . Ally Attacks . | . . . . . Total Damage . | . . . . . Kills . | . . . . . Allies Corrupted . | . . . . . Allies Melted . | . . . . . Intel | -11 -10 -10 -10 -9 ------- Run | Scr Mat Min Exi Min Robot Analysis Total . | . . . . . Derelict Logs Recovered 3 | . . 1 . 2 Drone Launches . | . . . . . Drone Recoveries . | . . . . . Exploration | -11 -10 -10 -10 -9 ------------- Run | Scr Mat Min Exi Min Turns Passed 983 | 114 295 364 113 97 Spaces Moved 1343 | 78 215 592 306 152 Core 22 | 15 7 . . . Treads . | . . . . . Legs 191 | 63 128 . . . Wheels . | . . . . . Hover . | . . . . . Flight 1130 | . 80 592 306 152 Fastest Speed 37 | 50 37 37 37 37 Average Speed 51 | 119 94 37 37 37 Slowest Speed 280 | 150 280 37 37 37 Overloaded Moves . | . . . . . Propulsion Burnouts . | . . . . . Robots Hopped 14 | . 1 10 . 3 Cave-ins Triggered . | . . . . . Exploration Rate (%) 44 | 6 45 78 65 29 Regions Visited 4 Branch Regions 3 Pre-discovered Areas 1 | . . . 1 . Known Exits Taken 1 | . 1 . . . Unknown Exits Taken 3 | 1 . 1 1 . Scrap Searched . | . . . . . Spaces Dug 16 | . 4 12 . . Terrain Destroyed 26 | . 4 14 . 8 Melee . | . . . . . Projectile 18 | . 4 14 . . AOE 8 | . . . . 8 Terrain Rammed . | . . . . . Walls Destroyed . | . . . . . Machines Disabled . | . . . . . Actions | -11 -10 -10 -10 -9 --------- Run | Scr Mat Min Exi Min Total 1514 | 97 271 666 305 175 Wait 66 | . 6 47 . 13 Move 1311 | 77 212 571 305 146 Hop 14 | . 1 10 . 3 Pick Up 30 | 9 16 5 . . Fast Attach 3 | . . 2 . 1 Attach 13 | 6 6 1 . . Detach 2 | . 1 1 . . Swap 19 | 4 6 7 . 2 Drop 17 | 1 9 5 . 2 Fire 37 | . 14 15 . 8 Melee 2 | . . 2 . . Ram . | . . . . . Kick . | . . . . . Crush . | . . . . . Escape Stasis . | . . . . . Rewire . | . . . . . Trap . | . . . . . Miscellaneous . | . . . . . Route ------- -11/Scrapyard -10/Materials -10/Mines -10/Exiles -9/Mines History --------- Turn | Location | Event 15 | -11/Scrapyard | Discovered new exit (range 15) 115 | -11/Scrapyard | Entered Materials 184 | -10/Materials | Identified exit to Mines 311 | -10/Materials | Build established: Mutant 410 | -10/Materials | Entered Mines 416 | -10/Mines | Met a Derelict bent on vengeance 661 | -10/Mines | Core integrity fell below 50% 722 | -10/Mines | Learned 4 Materials zone layouts 772 | -10/Mines | Deemed a non-threat by the Exiles lab entrance 772 | -10/Mines | Discovered new exit (range 5) 774 | -10/Mines | Entered Exiles 784 | -10/Exiles | Met 8R-AWN 790 | -10/Exiles | Met EX-HEX 808 | -10/Exiles | Met EX-BIN 849 | -10/Exiles | Met EX-DEC 859 | -10/Exiles | Learned location of Zion (-7) 883 | -10/Exiles | Discovered new exit (range 14) 887 | -10/Exiles | Entered Mines 888 | -9/Mines | Assembled infested the area 892 | -9/Mines | Learned location of 1 exit from Materials 958 | -9/Mines | Learned location of 1 exit from Lower Caves 961 | -9/Mines | Core integrity fell below 20% 984 | -9/Mines | Destroyed by as-51962 with Assembled Heavy Rifle Last Messages --------------- Acquired 14 matter. Dropped Flight Unit. Acquired Lgt. Ion Engine. Acquired 16 matter. K-01 Serf collects debris. Dropped Flight Unit. K-01 Serf collects debris. R-06 Scavenger collects Flight Unit. K-01 Serf collects debris. Acquired derelict log, extracted data. Data stored: Lower Caves exits (x1). as-34646 destroyed. Lgt. Ion Engine destroyed. EM Pulse Gun destroyed. as-80924 destroyed. Acquired 17 matter. U-05 Engineer lays Concrete. K-01 Serf collects debris. The unstable cave ceiling collapses. U-05 Engineer lays Concrete. Map ----- +----------------------------------------------------+ | ?????????????????????????????????????????????????? | | ?????????????????????????????????????????????????? | | ?????????????????????????????????????????????????? | | ?????????????????????????????????????????????????? | | ?????????????????????????????????????????????????? | | ?????????????????????????????????????????????????? | | ?????????????????????????????????????????????????? | | ?????????????????????????????????????????????????? | | ?????????????????????????????????????????????????? | | ?????????????????????????????????????????????????? | | ?????????????????????????????????????????????????? | | ??????????????????#??????????????????????????????? | | ?????????????????? ??????????????????????????????? | | ?????? ??????????? ??????????????????????????????? | | ?????? ????????? ??????????????????????????????? | | ?????? ??????? ??????????????????????????????? | | ???### ??????# ##????????????????????????????? | | ??## ?????? ????????????????????????????? | | ### ??????? ?????????????????????????????? | | *%= ??????? ?????????????????????????????? | | =!= ???????? " ???????#####?????????????????? | | =%! ???????? #???####""""##????????????????? | | | ?????????# ##### # [[!!"#????????????????? | | # #????????## # # / !"#????????????????? | | ?# #????????# # # #?????????????????? | | ??# #??####### @##"" ###???????????????? | | ???# #??# a % # u % #???????????????? | | ???# ##?# ##### u #????????????????? | | #### % ### #???## #???????????????? | | # % #????# # % k% ??????????? | | # ######????# r t ### ##?????????? | | # ## ##?????????### # ## ##??????????????? | | # ## #???#######?## ###### ##???????????????? | | #####"""""### ##??## ##????????????????? | | #### [ ##??? #?????????????????? | | ####??# = #??? #?????????????????? | | ??????# ####"" "## #???#?????????????????? | | ??????# #??### ## """ #????????????????????? | | ?###### #????# ## """ #????????????????????? | | ?# #????# ### """ ##????????????????????? | | ## ######????# #?## ###?????????????????????? | | #????###### ##### ##???????????????????????? | | #????# #?# #????????????????????????? | | ####????# #?# ????????????????????????? | | ????????# """ #?? ????????????????????????? | | ????????# """ #??# #???????????????????????? | | ????????# """ #???# #????????????????????????? | | ????????# #????###????????????????????????? | | ????????##########???????????????????????????????? | | ?????????????????????????????????????????????????? | +----------------------------------------------------+ Best States ------------- Heat Dissipation 45 Energy Generation 10 Energy Capacity 125 Matter Stores 300 Matter Capacity 300 Sight Range 16 Terrain Scan Density 10 Armor Coverage 150 Evasion (%) 62 Item Schematics ----------------- None Robot Schematics ------------------ None Fabricated ------------ Nothing Alien Tech Used ----------------- None Achievements -------------- Librarian Shopping List Challenges ------------ None Game ------ Seed SwordSpikedCharger Manual? 0 Play Time 00:48:41 Cumulative 18.7 hours Start 2022.06.25 @ 12:54:48 End 2022.06.25 @ 21:29:04 Sessions 1 Manual Loads 0 Difficulty Rogue Special Mode None Game No. 13 Rogue 13 Adventurer 0 Explorer 0 Win Type - Total 0 Types 0/0/0/0/0/0/0/0/0 Lore% 12 Gallery% 18 Achievement% 7 Wizard Run 0 Options --------- ASCII 0 Keyboard 0 Movement Mouse Keybinds 0 Fullscreen 1 Font 36/Smallcaps Map View 76x50 Tactical HUD 0 Map Filters NONE Filters NONE Steam 1 RUN: e6e3ab3a-1b0a-4f8c-adc4-393ee86ce37a